[Event "FIDE World School-ch G-17 2025"]
[Site "Vrnjacka Banja"]
[Date "2025.03.20"]
[Round "1.1"]
[White "Dukic, Teona"]
[Black "Kirtadze, Anastasia"]
[Result "0-1"]
[Annotator "NA RC"]
[ECO "E16"]
[WhiteElo "1770"]
[BlackElo "2180"]
[PlyCount "76"]
[EventDate "2025.03.19"]
[EventType "swiss"]
[EventCountry "SRB"]
[SourceTitle "playchess.com"]
[Source "ChessBase"]
[SourceQuality "1"]
[TimeControl "5400+30"]

1. d4 {[%emt 0:00:03]} Nf6 {[%emt 0:00:17]} 2. c4 {[%emt 0:00:05]} e6 {[%emt 0:00:02]} 3. Nf3 {[%emt 0:00:15]} b6 {[%emt 0:00:05]} 4. g3 {[%emt 0:00:08]} Bb4+ {[%emt 0:00:21]} 5. Bd2 {[%emt 0:00:12]} Be7 {[%emt 0:00:06]} 6. Bg2 {[%emt 0:00:18]} Bb7 {[%emt 0:04:31]} 7. O-O {[%emt 0:00:16]} O-O {[%emt 0:00:25]} 8. Nc3 {[%emt 0:00:34]} c6 {[%emt 0:02:02]} 9. e4 {[%emt 0:00:51]} d5 {[%emt 0:00:54]} 10. cxd5 {[%emt 0:02:38]} cxd5 {[%emt 0:01:10]} 11. e5 {[%emt 0:02:10]} Ne4 {[%emt 0:01:26]} 12. Rc1 {[%emt 0:02:39]} Ba6 {[%emt 0:13:04]} 13. Re1 {[%emt 0:00:20]} Nxd2 {[%emt 0:01:28]} 14. Qxd2 {[%emt 0:01:37]} b5 {[%emt 0:02:30]} 15. Bf1 {[%emt 0:02:10]} Qb6 {[%emt 0:02:51]} 16. Bd3 {[%emt 0:03:32]} Nc6 {[%emt 0:10:14]} 17. Bb1 {[%emt 0:02:28]} Rfc8 {[%emt 0:04:08]} 18. h4 {[%emt 0:01:21]} Na5 {[%emt 0:03:58]} 19. h5 {[%emt 0:05:51]} Nc4 {[%emt 0:03:06]} 20. Qd3 {[%emt 0:01:51]} g6 {[%emt 0:01:25]} 21. hxg6 {[%emt 0:00:22]} hxg6 {[%emt 0:01:49]} 22. b3 {[%emt 0:05:17]} Na3 {[%emt 0:02:44]} 23. Kg2 {[%emt 0:05:10]} Kg7 {[%emt 0:02:30]} 24. Qe3 {[%emt 0:04:19]} Rh8 {[%emt 0:05:50]} 25. Bd3 {[%emt 0:03:27]} Rh6 {[%emt 0:03:44]} 26. Rh1 {[%emt 0:02:46]} Rah8 {[%emt 0:00:27]} 27. Rxh6 {[%emt 0:00:57]} Rxh6 {[%emt 0:00:00]} 28. Ng5 {[%emt 0:02:01]} Rh5 {[%emt 0:04:41]} 29. Nh3 {[%emt 0:04:26]} Bb7 {[%emt 0:10:16]} 30. g4 {[%emt 0:04:27]} Rh4 {[%emt 0:01:24]} 31. Qf4 {[%emt 0:03:34]} Bc6 {[%emt 0:04:19]} 32. f3 {[%emt 0:10:28]} Qd8 {[%emt 0:04:04]} 33. Nb1 {[%emt 0:07:56]} Rxh3 {[%emt 0:03:16]} 34. Rxc6 {[%emt 0:03:17]} Bg5 {[%emt 0:01:00]} 35. Rc8 {[%emt 0:01:34]} Bxf4 {[%emt 0:01:21]} 36. Rxd8 {[%emt 0:01:05]} Rh2+ {[%emt 0:00:08]} 37. Kg1 {[%emt 0:00:34]} Nxb1 {[%emt 0:00:16]} 38. Bxb1 {[%emt 0:00:50]} Rd2 {[%emt 0:00:06]} 0-1

[Event "FIDE World School-ch G-17 2025"]
[Site "Vrnjacka Banja"]
[Date "2025.03.20"]
[Round "1.2"]
[White "Altynbek, Aiaru"]
[Black "Engel, Ecrin Tuana"]
[Result "1-0"]
[Annotator "NA RC"]
[ECO "A92"]
[WhiteElo "2005"]
[BlackElo "1763"]
[PlyCount "101"]
[EventDate "2025.03.19"]
[EventType "swiss"]
[EventCountry "SRB"]
[SourceTitle "playchess.com"]
[Source "ChessBase"]
[SourceQuality "1"]
[TimeControl "5400+30"]

1. d4 {[%emt 0:00:03]} f5 {[%emt 0:00:09]} 2. c4 {[%emt 0:00:28]} e6 {[%emt 0:00:17]} 3. Nf3 {[%emt 0:00:20]} Nf6 {[%emt 0:00:10]} 4. g3 {[%emt 0:00:28]} Be7 {[%emt 0:00:20]} 5. Bg2 {[%emt 0:00:16]} d5 {[%emt 0:00:32]} 6. O-O {[%emt 0:01:07]} Ne4 {[%emt 0:00:09]} 7. Nc3 {[%emt 0:02:54]} c6 {[%emt 0:08:06]} 8. Bf4 {[%emt 0:05:04]} Nd7 {[%emt 0:03:59]} 9. h4 {[%emt 0:09:49]} h6 {[%emt 0:03:49]} 10. Ne5 {[%emt 0:09:34]} g5 {[%emt 0:14:00]} 11. e3 {[%emt 0:07:28]} Nxe5 {[%emt 0:02:52]} 12. Bxe5 {[%emt 0:00:20]} Bf6 {[%emt 0:00:49]} 13. Qh5+ {[%emt 0:10:17]} Ke7 {[%emt 0:09:21]} 14. Nxe4 {[%emt 0:09:20]} dxe4 {[%emt 0:03:20]} 15. Bxf6+ {[%emt 0:03:54]} Kxf6 {[%emt 0:00:10]} 16. f3 {[%emt 0:00:58]} exf3 {[%emt 0:00:25]} 17. Qxf3 {[%emt 0:00:12]} Kg7 {[%emt 0:01:08]} 18. h5 {[%emt 0:02:18]} Bd7 {[%emt 0:05:26]} 19. Rad1 {[%emt 0:02:36]} Qb6 {[%emt 0:03:56]} 20. Rf2 {[%emt 0:04:19]} Rad8 {[%emt 0:00:29]} 21. Rfd2 {[%emt 0:02:15]} Rhf8 {[%emt 0:02:44]} 22. Kh2 {[%emt 0:02:39]} Be8 {[%emt 0:06:58]} 23. e4 {[%emt 0:01:47]} Qc7 {[%emt 0:06:35]} 24. exf5 {[%emt 0:07:48]} Rxf5 {[%emt 0:04:55]} 25. Qe2 {[%emt 0:00:21]} Bf7 {[%emt 0:02:57]} 26. Bh3 {[%emt 0:02:11]} Rf6 {[%emt 0:00:12]} 27. Bg4 {[%emt 0:00:24]} Bg8 {[%emt 0:01:13]} 28. Re1 {[%emt 0:04:45]} Rdf8 {[%emt 0:01:37]} 29. Qg2 {[%emt 0:00:22]} Qa5 {[%emt 0:08:33]} 30. a3 {[%emt 0:03:00]} Qa4 {[%emt 0:02:39]} 31. Rc1 {[%emt 0:01:07]} Qa5 {[%emt 0:00:19]} 32. Rc3 {[%emt 0:00:30]} Qd8 {[%emt 0:04:46]} 33. b4 {[%emt 0:01:23]} R8f7 {[%emt 0:01:07]} 34. Re3 {[%emt 0:01:20]} Qf8 {[%emt 0:01:11]} 35. Ree2 {[%emt 0:00:16]} Rd7 {[%emt 0:00:59]} 36. Qe4 {[%emt 0:00:49]} Qd6 {[%emt 0:00:25]} 37. Qe5 {[%emt 0:02:07]} Bf7 {[%emt 0:01:19]} 38. Kh3 {[%emt 0:01:26]} Be8 {[%emt 0:00:54]} 39. Bxe6 {[%emt 0:01:53]} Qxe5 {[%emt 0:00:33]} 40. Rxe5 {[%emt 0:00:05]} Rd6 {[%emt 0:00:06]} 41. Bg4 {[%emt 0:00:28]} Bf7 {[%emt 0:00:13]} 42. c5 {[%emt 0:01:19]} Rd8 {[%emt 0:00:31]} 43. Re7 {[%emt 0:00:08]} Rb8 {[%emt 0:00:16]} 44. d5 {[%emt 0:00:14]} cxd5 {[%emt 0:00:22]} 45. Rxd5 {[%emt 0:00:19]} Kf8 {[%emt 0:00:17]} 46. Rdd7 {[%emt 0:00:19]} Bd5 {[%emt 0:00:26]} 47. Rh7 {[%emt 0:01:47]} Kg8 {[%emt 0:00:17]} 48. Rhg7+ {[%emt 0:00:15]} Kf8 {[%emt 0:00:06]} 49. Rg6 {[%emt 0:00:13]} Rxg6 {[%emt 0:00:48]} 50. hxg6 {[%emt 0:00:03]} Bc6 {[%emt 0:00:07]} 51. g7+ {[%emt 0:00:13]} 1-0

[Event "FIDE World School-ch G-17 2025"]
[Site "Vrnjacka Banja"]
[Date "2025.03.20"]
[Round "1.3"]
[White "Ivanovski, Kalina"]
[Black "Maslova, Anastasiya Yar"]
[Result "0-1"]
[Annotator "TA"]
[ECO "D35"]
[WhiteElo "1656"]
[BlackElo "1938"]
[PlyCount "148"]
[EventDate "2025.03.19"]
[EventType "swiss"]
[EventCountry "SRB"]
[SourceTitle "playchess.com"]
[Source "ChessBase"]
[SourceQuality "1"]
[TimeControl "5400+30"]

{[%evp 9,148,-2,20,22,32,30,36,13,21,3,18,23,22,-7,1,-10,-10,-10,-6,-19,0,-56,-37,-58,-47,-95,-96,-100,-67,-93,-81,-120,-74,-76,-50,-62,-22,-75,-75,-92,-82,-88,-88,-93,-91,-96,-82,-87,0,-84,0,-92,-62,-55,-62,-131,-76,-93,-84,-79,-83,-90,-70,-93,-28,-36,10,9,10,8,8,9,6,0,0,0,-3,-29,-17,-17,-21,0,0,-64,-34,-59,-37,-67,-65,-61,-28,-58,-39,-60,-14,-17,0,0,0,-16,0,-12,0,0,0,0,0,-3,-4,-27,-22,-88,-87,-151,-135,-164,-156,-352,-347,-342,-342,-323,-301,-409,-382,-425,-276,-355,-217,-401,-371,-368,-386,-671,-565,-1519,-1373,-2650,-2477,-29997,-1331]} 1. d4 {[%emt 0:00:02]} Nf6 {[%emt 0:00:33]} 2. c4 {[%emt 0:00:09]} e6 {[%emt 0:00:07]} 3. Nc3 {[%emt 0:00:06]} d5 {[%emt 0:00:09]} 4. cxd5 {[%emt 0:00:06]} exd5 {[%emt 0:00:10]} 5. Bg5 {[%emt 0:00:12]} Be6 {[%emt 0:00:10]} 6. e3 {[%emt 0:00:17] D35: Queen's Gambit Declined: Exchange Variation.} Nbd7 {[%emt 0:00:21]} 7. Bd3 {[%emt 0:00:17]} c6 {[%emt 0:00:11]} 8. Qc2 {[%emt 0:00:36] White is slightly better.} h6 {[%emt 0:00:11][%cal Bh7h6,Bh6h5,Bh5h4][%mdl 32]} 9. Bf4 {[%emt 0:00:24]} g5 {[%emt 0:00:46]} 10. Bg3 {[%emt 0:00:10]} Nh5 {[%emt 0:00:09]} 11. Nge2 {[%emt 0:06:18]} Nxg3 {[%emt 0:00:10]} 12. Nxg3 {[%emt 0:00:20]} h5 {[%emt 0:00:10]} 13. O-O-O {[%emt 0:04:00]} h4 {[%emt 0:00:15]} 14. Nge2 {[%emt 0:00:42]} Nb6 $146 {[%emt 0:07:21]} ({Predecessor:} 14... Qf6 15. e4 Nb6 16. f3 O-O-O 17. Rhf1 Kb8 18. Kb1 dxe4 19. fxe4 Qe7 20. e5 c5 21. dxc5 Qxc5 {½-½ Pultinevicius,P (2584)-Zwirs,N (2468) Sant Boi de Llobregat op 4th 2023 (8)}) 15. f3 {[%emt 0:03:16]} (15. e4 $11) 15... Qc7 {[%emt 0:12:34]} 16. e4 {[%emt 0:22:27]} dxe4 {[%emt 0:04:14]} 17. Nxe4 {[%emt 0:02:46]} (17. fxe4 $15 O-O-O 18. Kb1) 17... Nd5 {[%emt 0:02:58]} (17... Bxa2 $6 18. b3 $11) 18. Qd2 {[%emt 0:03:41][%cal Oc1b1]} (18. Nxg5 Bh6 19. f4 Bxg5 20. fxg5 Ne3) 18... Bh6 {[%emt 0:10:24]} 19. g3 {[%emt 0:05:47]} O-O-O {[%emt 0:05:55]} 20. Kb1 {[%emt 0:02:03]} Qe7 {[%emt 0:10:44]} (20... Kb8 $142 21. Nxg5 Bxg5 22. Qxg5 Nb4) 21. Nc5 $17 {[%emt 0:13:51]} Qf6 {[%emt 0:07:31]} 22. Be4 {[%emt 0:03:12]} Rhe8 {[%emt 0:12:39]} 23. g4 {[%emt 0:10:33]} (23. Nxe6 $11 {keeps the balance.} fxe6 (23... Qxe6 24. g4 $17) 24. Rhe1) 23... Kb8 {[%emt 0:05:30]} 24. Rhe1 {[%emt 0:02:19]} Bf8 {[%emt 0:03:35]} 25. Qc1 {[%emt 0:09:49]} Bd6 {[%emt 0:02:20]} 26. Nxe6 {[%emt 0:04:08]} Rxe6 {[%emt 0:01:06]} (26... Qxe6 27. Qxg5 Qf6 28. Qc1 $11 (28. Qxf6 Nxf6 29. h3 Nxe4 $11)) 27. h3 {[%emt 0:00:37]} Bf4 {[%emt 0:03:57]} 28. Qc5 {[%emt 0:01:57]} Bd6 {[%emt 0:02:42]} 29. Qc1 {[%emt 0:00:38]} Bf4 {[%emt 0:00:17]} 30. Qc5 {[%emt 0:00:07]} Red6 {[%emt 0:00:07]} 31. Rd3 {[%emt 0:00:55]} R6d7 {[%emt 0:04:09]} 32. Nc3 {[%emt 0:01:34][%csl Of4] Strong Square Black (f4)} (32. Ra3 $15 a6 33. Rb3) 32... Nc7 {[%emt 0:01:34][%csl Od4] Black attacks a weakness} (32... Bd6 33. Qc4 (33. Nxd5 $2 cxd5 34. Qb5 dxe4 $19) 33... Qe7) 33. Ne2 {[%emt 0:00:30]} Ne6 {[%emt 0:01:00]} 34. Qf5 {[%emt 0:00:32]} Qe7 {[%emt 0:01:29][%cal Re6d4]} 35. Red1 {[%emt 0:01:22]} Bc7 {[%emt 0:01:00]} 36. d5 {[%emt 0:00:27]} Ng7 {[%emt 0:01:17]} ({Black should try} 36... Nc5 $17 37. R3d2 f6) 37. Qh7 $11 {[%emt 0:00:18]} Be5 {[%emt 0:00:29]} (37... cxd5 $15 38. Qxg7 Be5 (38... dxe4 39. Rxd7 Rxd7 40. Rxd7 $11)) 38. dxc6 {[%emt 0:00:43]} Rxd3 {[%emt 0:00:07]} 39. Rxd3 {[%emt 0:01:33]} Rxd3 {[%emt 0:00:14]} 40. Bxd3 {[%emt 0:00:03]} bxc6 $40 {[%emt 0:01:11][%mdl 128] White needs to defend precisely.} 41. Qe4 {[%emt 0:00:42]} Qd6 {[%emt 0:00:27] Inhibits Nd4.} 42. Qc4 {[%emt 0:01:01]} Ne6 {[%emt 0:00:35]} 43. Nc3 {[%emt 0:00:44]} Bxc3 {[%emt 0:00:21]} 44. Qxc3 {[%emt 0:00:05][%mdl 4096] Endgame KQB-KQN} Nf4 {[%emt 0:00:22]} 45. Qb3+ {[%emt 0:00:19]} Kc8 {[%emt 0:00:37]} 46. Bf1 {[%emt 0:01:17]} (46. Bc2 $11) 46... Kd8 {[%emt 0:00:39]} 47. a3 {[%emt 0:00:25][%cal Ob1a2]} Ke7 {[%emt 0:00:39]} 48. Qe3+ {[%emt 0:00:36]} Kf6 {[%emt 0:00:14]} 49. Qc3+ {[%emt 0:00:23]} Kg6 {[%emt 0:00:12]} 50. Qc2+ {[%emt 0:00:30]} Kg7 {[%emt 0:00:08] Active counter play!} 51. Qc3+ {[%emt 0:00:25]} f6 {[%emt 0:00:10]} (51... Kf8 $15 {is superior.}) 52. Ka2 {[%emt 0:00:43]} Ne6 {[%emt 0:01:14]} 53. Bc4 {[%emt 0:00:31]} Nd4 {[%emt 0:00:28]} 54. Qe3 {[%emt 0:00:21]} Kf8 {[%emt 0:00:46] Wards off Qe8+} 55. Qe4 {[%emt 0:00:23]} a5 {[%emt 0:00:33]} 56. Qg6 {[%emt 0:00:25][%csl Gc4][%cal Rg6f7] [#]} Ke7 {[%emt 0:00:13]} 57. Qf7+ {[%emt 0:00:15]} Kd8 {[%emt 0:00:06]} 58. Qg8+ {[%emt 0:00:44]} Kc7 {[%emt 0:00:07]} 59. Qf7+ {[%emt 0:00:21]} Kb6 {[%emt 0:00:20]} 60. Bf1 {[%emt 0:01:33]} (60. Qe8 $11) 60... a4 {[%emt 0:01:40]} (60... Nxf3 $2 61. Qb3+ Kc5 62. Qc3+ (62. Qxf3 Qe6+ 63. Kb1 Kb6 $18) 62... Kb6 63. Qxf3 $18) 61. Qc4 {[%emt 0:00:00]} ({White should play} 61. Qe8) 61... Qd5 $17 {[%emt 0:00:23]} 62. Qxd5 {[%emt 0:00:22]} cxd5 {[%emt 0:00:04] KB-KN} 63. Bg2 $2 {[%emt 0:00:17] Loses the game.} (63. Bd3 $17) 63... Kc5 $19 {[%emt 0:00:16]} 64. Kb1 {[%emt 0:00:26]} Nb3 {[%emt 0:00:48]} 65. Kc2 {[%emt 0:00:13]} Kd4 {[%emt 0:00:08]} 66. Bf1 {[%emt 0:00:23]} Ke3 {[%emt 0:00:27]} 67. Kc3 {[%emt 0:00:43]} Nc1 {[%emt 0:01:30]} (67... Kxf3 $2 68. Bb5 $19) 68. Bb5 {[%emt 0:00:22]} d4+ {[%emt 0:00:21]} (68... Kxf3 69. Bxa4 Ne2+ 70. Kd2 $17) 69. Kc2 $2 {[%emt 0:00:30]} (69. Kb4) 69... Ne2 {[%emt 0:00:15]} 70. Bxa4 {[%emt 0:00:18]} d3+ {[%emt 0:00:15]} (70... Kxf3 71. Kd2 d3 72. b4 $18 (72. Bc6+ Kg3 $11)) 71. Kd1 $2 {[%emt 0:00:35]} (71. Kb1) 71... Nf4 {[%emt 0:00:05][%cal Od3d2] [#] Threatens to win with ...d2!.} (71... Kxf3 72. Kd2 $11) 72. Bc6 {[%emt 0:00:53]} Nxh3 {[%emt 0:00:10]} 73. f4 {[%emt 0:00:55]} Nf2+ {[%emt 0:00:05]} ({Weaker is} 73... Kxf4 74. Kd2 Ke5 (74... Kxg4 $2 {is the wrong capture.} 75. a4 $18) 75. Kxd3 $17) 74. Ke1 {[%emt 0:00:29]} d2+ {[%emt 0:00:03] Weighted Error Value: White=0.16 (very precise) /Black=0.16 (very precise)   Loses game:     	White=1     	---        Mistake:       	White=9     	Black=5      Inaccurate:     	White=9     	Black=7      OK:         	White=18    	Black=20     Best:        	White=3     	Black=10} 0-1

[Event "FIDE World School-ch G-17 2025"]
[Site "Vrnjacka Banja"]
[Date "2025.03.20"]
[Round "1.4"]
[White "Seyhan, Pelin"]
[Black "Dumitrache, Elisa-Andreea"]
[Result "1-0"]
[Annotator "NA RC"]
[ECO "B13"]
[WhiteElo "1924"]
[BlackElo "1650"]
[PlyCount "51"]
[EventDate "2025.03.19"]
[EventType "swiss"]
[EventCountry "SRB"]
[SourceTitle "playchess.com"]
[Source "ChessBase"]
[SourceQuality "1"]
[TimeControl "5400+30"]

1. e4 {[%emt 0:00:04]} c6 {[%emt 0:00:10]} 2. d4 {[%emt 0:00:09]} d5 {[%emt 0:00:06]} 3. exd5 {[%emt 1:31:47]} cxd5 {[%emt 0:00:05]} 4. Bd3 {[%emt 0:00:00]} Nc6 {[%emt 0:00:20]} 5. c3 {[%emt 0:00:00]} e5 {[%emt 0:03:11]} 6. dxe5 {[%emt 0:00:00]} Nxe5 {[%emt 0:00:11]} 7. Bb5+ {[%emt 0:00:00]} Nc6 {[%emt 0:02:23]} 8. Nf3 {[%emt 0:00:00]} Nf6 {[%emt 1:28:04]} 9. Bg5 {[%emt 0:00:00]} a6 {[%emt 0:00:00]} 10. Ba4 {[%emt 0:00:00]} Qe7+ {[%emt 0:00:00]} 11. Be3 {[%emt 0:00:00]} Qc7 {[%emt 0:00:00]} 12. O-O {[%emt 0:00:00]} Be7 {[%emt 0:00:00]} 13. Re1 {[%emt 0:00:00]} O-O {[%emt 0:00:00]} 14. Bg5 {[%emt 0:00:00]} Be6 {[%emt 0:00:00]} 15. Bc2 {[%emt 0:00:00]} Rac8 {[%emt 0:00:00]} 16. Nbd2 {[%emt 0:00:00]} Rfd8 {[%emt 0:00:00]} 17. Nb3 {[%emt 0:00:00]} Ne4 {[%emt 0:00:00]} 18. Bxe7 {[%emt 0:00:00]} Nxe7 {[%emt 0:00:00]} 19. Qe2 {[%emt 0:00:00]} Nf6 {[%emt 0:00:00]} 20. Nbd4 {[%emt 0:00:00]} Rd6 {[%emt 0:00:00]} 21. Ng5 {[%emt 0:00:00]} Ne4 {[%emt 0:00:00]} 22. Ndxe6 {[%emt 0:00:00]} fxe6 {[%emt 0:00:00]} 23. Bxe4 {[%emt 0:00:00]} dxe4 {[%emt 0:00:00]} 24. Qh5 {[%emt 0:00:00]} h6 {[%emt 0:00:00]} 25. Qf7+ {[%emt 0:00:00]} Kh8 {[%emt 0:00:00]} 26. Nxe6 {[%emt 0:00:00]} 1-0

[Event "FIDE World School-ch G-17 2025"]
[Site "Vrnjacka Banja"]
[Date "2025.03.20"]
[Round "1.5"]
[White "Dange, Gehansa Ranumi"]
[Black "Buyankhishig, Batpelden"]
[Result "0-1"]
[Annotator "NA RC"]
[ECO "C77"]
[WhiteElo "1643"]
[BlackElo "1907"]
[PlyCount "68"]
[EventDate "2025.03.19"]
[EventType "swiss"]
[EventCountry "SRB"]
[SourceTitle "playchess.com"]
[Source "ChessBase"]
[SourceQuality "1"]
[TimeControl "5400+30"]

1. e4 {[%emt 0:00:11]} e5 {[%emt 0:00:26]} 2. Nf3 {[%emt 0:00:06]} Nc6 {[%emt 0:00:23]} 3. Bb5 {[%emt 0:00:05]} a6 {[%emt 0:00:27]} 4. Ba4 {[%emt 0:00:05]} Nf6 {[%emt 0:00:29]} 5. Qe2 {[%emt 0:00:08]} b5 {[%emt 0:05:12]} 6. Bb3 {[%emt 0:00:05]} Bc5 {[%emt 0:07:30]} 7. c3 {[%emt 0:00:14]} O-O {[%emt 0:04:11]} 8. d3 {[%emt 0:00:04]} Bb7 {[%emt 0:02:44]} 9. O-O {[%emt 0:01:59]} d6 {[%emt 0:01:22]} 10. Bg5 {[%emt 0:15:14]} h6 {[%emt 0:05:36]} 11. Be3 {[%emt 0:00:52]} Bxe3 {[%emt 0:03:03]} 12. fxe3 {[%emt 0:00:08]} Na5 {[%emt 0:07:24]} 13. Bc2 {[%emt 0:00:29]} c5 {[%emt 0:00:59]} 14. Nbd2 {[%emt 0:00:52]} d5 {[%emt 0:10:09]} 15. d4 {[%emt 0:16:34]} exd4 {[%emt 0:12:59]} 16. e5 {[%emt 0:02:58]} d3 {[%emt 0:01:10]} 17. Bxd3 {[%emt 0:20:41]} Ne4 {[%emt 0:01:38]} 18. Kh1 {[%emt 0:15:34]} Qe7 {[%emt 0:03:08]} 19. Bxe4 {[%emt 0:01:23]} dxe4 {[%emt 0:00:25]} 20. Ng1 {[%emt 0:00:32]} Qxe5 {[%emt 0:01:40]} 21. Rf4 {[%emt 0:01:04]} Rad8 {[%emt 0:05:30]} 22. Raf1 {[%emt 0:05:20]} f5 {[%emt 0:02:05]} 23. R4f2 {[%emt 0:02:38]} Bc8 {[%emt 0:06:15]} 24. Nh3 {[%emt 0:02:09]} Rd6 {[%emt 0:02:27]} 25. a4 {[%emt 0:04:17]} Rfd8 {[%emt 0:03:46]} 26. axb5 {[%emt 0:00:26]} Rxd2 {[%emt 0:01:30]} 27. Qxd2 {[%emt 0:00:05]} Rxd2 {[%emt 0:00:04]} 28. Rxd2 {[%emt 0:00:05]} Kh7 {[%emt 0:01:02]} 29. bxa6 {[%emt 0:06:08]} Bxa6 {[%emt 0:00:34]} 30. Rfd1 {[%emt 0:00:32]} Bd3 {[%emt 0:01:08]} 31. Nf4 {[%emt 0:02:54]} Nc4 {[%emt 0:01:37]} 32. Nxd3 {[%emt 0:00:11]} exd3 {[%emt 0:00:05]} 33. Rxd3 {[%emt 0:00:54]} Nxb2 {[%emt 0:00:04]} 34. Rd5 {[%emt 0:00:05]} Qe4 {[%emt 0:00:09]} 0-1

[Event "FIDE World School-ch G-17 2025"]
[Site "Vrnjacka Banja"]
[Date "2025.03.20"]
[Round "1.6"]
[White "Nauanova Zhaniya"]
[Black "Lazic, Ana"]
[Result "1-0"]
[Annotator "NA RC"]
[ECO "D13"]
[WhiteElo "1905"]
[BlackElo "1634"]
[PlyCount "95"]
[EventDate "2025.03.19"]
[EventType "swiss"]
[EventCountry "SRB"]
[SourceTitle "playchess.com"]
[Source "ChessBase"]
[SourceQuality "1"]
[TimeControl "5400+30"]

1. c4 {[%emt 0:00:07]} c6 {[%emt 0:00:07]} 2. Nf3 {[%emt 0:02:04]} Nf6 {[%emt 0:00:37]} 3. Nc3 {[%emt 0:02:19]} d5 {[%emt 0:01:50]} 4. cxd5 {[%emt 0:00:06]} cxd5 {[%emt 0:00:05]} 5. d4 {[%emt 0:00:41]} e6 {[%emt 0:00:33]} 6. Bf4 {[%emt 0:02:05]} Bd6 {[%emt 0:03:49]} 7. Bxd6 {[%emt 0:01:03]} Qxd6 {[%emt 0:00:07]} 8. e3 {[%emt 0:00:30]} a6 {[%emt 0:01:07]} 9. Rc1 {[%emt 0:01:50]} Nc6 {[%emt 0:00:08]} 10. Bd3 {[%emt 0:00:57]} Bd7 {[%emt 0:00:40]} 11. O-O {[%emt 0:01:31]} O-O {[%emt 0:00:25]} 12. Na4 {[%emt 0:10:45]} Nb4 {[%emt 0:02:19]} 13. Bb1 {[%emt 0:01:37]} Bxa4 {[%emt 0:02:38]} 14. Qxa4 {[%emt 0:00:05]} b5 {[%emt 0:00:29]} 15. Qa3 {[%emt 0:04:30]} Rfd8 {[%emt 0:07:53]} 16. Rc5 {[%emt 0:14:39]} Nc6 {[%emt 0:02:50]} 17. Rfc1 {[%emt 0:00:40]} Ne7 {[%emt 0:01:06]} 18. Ne5 {[%emt 0:05:01]} Nd7 {[%emt 0:00:50]} 19. Nxd7 {[%emt 0:49:30]} Qxd7 {[%emt 0:00:48]} 20. g3 {[%emt 0:00:00]} Rdc8 {[%emt 0:03:39]} 21. Qa5 {[%emt 0:00:00]} Rxc5 {[%emt 0:04:02]} 22. Rxc5 {[%emt 0:00:00]} Nc8 {[%emt 0:16:04]} 23. b3 {[%emt 0:00:00]} Nd6 {[%emt 0:02:36]} 24. Qc3 {[%emt 0:00:00]} Rc8 {[%emt 0:01:40]} 25. Bd3 {[%emt 0:00:00]} g6 {[%emt 0:01:35]} 26. a4 {[%emt 0:00:00]} bxa4 {[%emt 0:02:49]} 27. bxa4 {[%emt 0:00:00]} Rxc5 {[%emt 0:00:57]} 28. dxc5 {[%emt 0:00:00]} Qc6 {[%emt 0:04:11]} 29. Qa5 {[%emt 0:00:00]} Nb7 {[%emt 0:00:31]} 30. Qb6 {[%emt 0:00:00]} Qxb6 {[%emt 0:02:55]} 31. cxb6 {[%emt 0:00:00]} a5 {[%emt 0:00:47]} 32. e4 {[%emt 0:00:00]} Kf8 {[%emt 0:01:30]} 33. Bb5 {[%emt 0:00:00]} Ke7 {[%emt 0:00:42]} 34. exd5 {[%emt 0:00:16]} exd5 {[%emt 0:06:21]} 35. Bc6 {[%emt 0:00:14]} Nc5 {[%emt 0:00:07]} 36. b7 {[%emt 0:03:45]} Na6 {[%emt 0:00:27]} 37. Bxd5 {[%emt 0:00:08]} f6 {[%emt 0:00:23]} 38. h4 {[%emt 0:03:37]} Kd6 {[%emt 0:00:13]} 39. Bf7 {[%emt 0:01:00]} Kc7 {[%emt 0:00:22]} 40. g4 {[%emt 0:00:12]} Nc5 {[%emt 0:00:34]} 41. g5 {[%emt 0:00:46]} fxg5 {[%emt 0:00:21]} 42. hxg5 {[%emt 0:00:02]} Ne4 {[%emt 0:00:37]} 43. f4 {[%emt 0:00:12]} Kxb7 {[%emt 0:02:47]} 44. Bd5+ {[%emt 0:00:03]} Kc7 {[%emt 0:00:58]} 45. Bxe4 {[%emt 0:00:10]} Kd6 {[%emt 0:00:31]} 46. Kf2 {[%emt 0:00:14]} Kc5 {[%emt 0:01:36]} 47. Ke3 {[%emt 0:00:21]} Kb4 {[%emt 0:00:18]} 48. Bc2 {[%emt 0:00:12]} 1-0